[Event "Early-Titled-Tuesday-Blitz-June-18-2024"]
[Site "Chess.com"]
[Date "2024.06.18"]
[Round "3"]
[White "Vaathi_Coming"]
[Black "Patricius007"]
[Result "1-0"]
[WhiteElo "2884"]
[BlackElo "2533"]
[TimeControl "180+1"]
[EndTime "8:26:00 PDT"]
[Termination "Vaathi_Coming won by checkmate"]

1. g3 {[%clk 0:02:49.8]} 1... d5 {[%clk 0:02:59.6]} 2. d3 {[%clk 0:02:42.6]}
2... c5 {[%clk 0:02:56.7]} 3. Bg2 {[%clk 0:02:42.5]} 3... Nc6 {[%clk 0:02:56.8]}
4. Nf3 {[%clk 0:02:41.3]} 4... e5 {[%clk 0:02:56.5]} 5. O-O {[%clk 0:02:39.4]}
5... Be7 {[%clk 0:02:57]} 6. c4 {[%clk 0:02:35.8]} 6... d4 {[%clk 0:02:57]} 7.
e3 {[%clk 0:02:29.5]} 7... Nf6 {[%clk 0:02:45.3]} 8. exd4 {[%clk 0:02:29.7]}
8... exd4 {[%clk 0:02:46]} 9. Re1 {[%clk 0:02:30.2]} 9... O-O {[%clk 0:02:46.6]}
10. Ne5 {[%clk 0:02:29.3]} 10... Nxe5 {[%clk 0:02:45]} 11. Rxe5 {[%clk
0:02:30.2]} 11... Bd6 {[%clk 0:02:45.5]} 12. Re1 {[%clk 0:02:30.7]} 12... h6
{[%clk 0:02:45.5]} 13. Nd2 {[%clk 0:02:30.3]} 13... Qc7 {[%clk 0:02:45.1]} 14.
Ne4 {[%clk 0:02:23.7]} 14... Nxe4 {[%clk 0:02:44]} 15. Bxe4 {[%clk 0:02:24.6]}
15... Bh3 {[%clk 0:02:43.2]} 16. Qh5 {[%clk 0:02:21.2]} 16... Qd7 {[%clk
0:02:23.9]} 17. Bxh6 {[%clk 0:02:19.6]} 17... gxh6 {[%clk 0:02:24.8]} 18. Qxh6
{[%clk 0:02:20.5]} 18... Bf5 {[%clk 0:02:01.9]} 19. Qg5+ {[%clk 0:02:09.3]}
19... Bg6 {[%clk 0:01:59.6]} 20. Bxg6 {[%clk 0:02:09.9]} 20... fxg6 {[%clk
0:01:59.7]} 21. Qxg6+ {[%clk 0:02:10.8]} 21... Kh8 {[%clk 0:01:58.7]} 22. Qh6+
{[%clk 0:02:11.4]} 22... Kg8 {[%clk 0:01:58.5]} 23. Re6 {[%clk 0:02:11.5]} 23...
Rae8 {[%clk 0:01:19.3]} 24. Rg6+ {[%clk 0:02:10]} 24... Kf7 {[%clk 0:01:19.7]}
25. Qg7# {[%clk 0:02:10.1]} 1-0

[Event "Early-Titled-Tuesday-Blitz-June-18-2024"]
[Site "Chess.com"]
[Date "2024.06.18"]
[Round "3"]
[White "JanMur7"]
[Black "Nadtkins"]
[Result "0-1"]
[WhiteElo "2247"]
[BlackElo "2562"]
[TimeControl "180+1"]
[EndTime "8:26:01 PDT"]
[Termination "Nadtkins won by resignation"]

1. c4 {[%clk 0:03:00.9]} 1... e5 {[%clk 0:02:55.4]} 2. Nc3 {[%clk 0:03:01.1]}
2... Nc6 {[%clk 0:02:50.5]} 3. Nf3 {[%clk 0:03:01.3]} 3... d6 {[%clk 0:02:41.6]}
4. d4 {[%clk 0:02:59.9]} 4... Bg4 {[%clk 0:02:32.6]} 5. d5 {[%clk 0:02:56.8]}
5... Nb8 {[%clk 0:02:23.5]} 6. e4 {[%clk 0:02:49.1]} 6... g6 {[%clk 0:02:19.9]}
7. h3 {[%clk 0:02:44.9]} 7... Bxf3 {[%clk 0:02:12.5]} 8. Qxf3 {[%clk 0:02:45.8]}
8... h5 {[%clk 0:02:06.2]} 9. g4 {[%clk 0:02:42]} 9... Nd7 {[%clk 0:01:45.7]}
10. Be3 {[%clk 0:02:27]} 10... Be7 {[%clk 0:01:33.8]} 11. Be2 {[%clk 0:02:22.2]}
11... Bg5 {[%clk 0:01:32.9]} 12. O-O-O {[%clk 0:02:17.2]} 12... h4 {[%clk
0:01:21.5]} 13. Nb5 {[%clk 0:02:00.5]} 13... a6 {[%clk 0:01:15.7]} 14. Bxg5
{[%clk 0:01:54.6]} 14... Qxg5+ {[%clk 0:01:14.9]} 0-1

[Event "Early-Titled-Tuesday-Blitz-June-18-2024"]
[Site "Chess.com"]
[Date "2024.06.18"]
[Round "3"]
[White "Rile-Man"]
[Black "Grebnev_A"]
[Result "1-0"]
[WhiteElo "2512"]
[BlackElo "2695"]
[TimeControl "180+1"]
[EndTime "8:26:10 PDT"]
[Termination "Rile-Man won by resignation"]

1. d4 {[%clk 0:03:00.9]} 1... Nf6 {[%clk 0:02:58.1]} 2. Bf4 {[%clk 0:03:00.8]}
2... d5 {[%clk 0:02:57.7]} 3. e3 {[%clk 0:03:00.1]} 3... c5 {[%clk 0:02:57.8]}
4. Nf3 {[%clk 0:03:00.4]} 4... Nc6 {[%clk 0:02:54.2]} 5. Nbd2 {[%clk 0:03:00.9]}
5... cxd4 {[%clk 0:02:52.4]} 6. exd4 {[%clk 0:03:00.8]} 6... Bg4 {[%clk
0:02:52.7]} 7. c3 {[%clk 0:02:59.9]} 7... e6 {[%clk 0:02:52.9]} 8. Qa4 {[%clk
0:02:59.9]} 8... Bxf3 {[%clk 0:02:48]} 9. Nxf3 {[%clk 0:02:59.4]} 9... Rc8
{[%clk 0:02:47.8]} 10. Ne5 {[%clk 0:02:57.5]} 10... a6 {[%clk 0:02:48.3]} 11.
Nxc6 {[%clk 0:02:54]} 11... Rxc6 {[%clk 0:02:38.6]} 12. Bxa6 {[%clk 0:02:49.9]}
12... Bd6 {[%clk 0:02:35.2]} 13. Bxd6 {[%clk 0:02:47.4]} 13... Qxd6 {[%clk
0:02:36.1]} 14. Bb5 {[%clk 0:02:47.5]} 14... O-O {[%clk 0:02:29.8]} 15. Bxc6
{[%clk 0:02:47.3]} 15... bxc6 {[%clk 0:02:30.7]} 16. h3 {[%clk 0:02:41.7]} 16...
c5 {[%clk 0:02:27.5]} 17. O-O {[%clk 0:02:38.9]} 17... Ne4 {[%clk 0:02:26.5]}
18. dxc5 {[%clk 0:02:36.2]} 18... Qxc5 {[%clk 0:02:25.6]} 19. Qd4 {[%clk
0:02:35.4]} 19... Qb5 {[%clk 0:02:26]} 20. b4 {[%clk 0:02:29.8]} 20... Qa4
{[%clk 0:02:25]} 21. Rfb1 {[%clk 0:02:11.7]} 21... Rc8 {[%clk 0:02:24.8]} 22.
Rb3 {[%clk 0:02:11.1]} 22... Rc4 {[%clk 0:02:20.6]} 23. Qd3 {[%clk 0:02:11.4]}
23... Qa7 {[%clk 0:02:19.8]} 24. Qe3 {[%clk 0:02:05.6]} 24... Qc7 {[%clk
0:02:20]} 25. b5 {[%clk 0:02:04.1]} 25... Nc5 {[%clk 0:02:18]} 26. Rb4 {[%clk
0:02:00.5]} 26... Na4 {[%clk 0:02:15.5]} 27. Rxc4 {[%clk 0:01:58.9]} 27... Qxc4
{[%clk 0:02:16.4]} 28. b6 {[%clk 0:01:56.5]} 28... Qb5 {[%clk 0:02:15.8]} 29. c4
{[%clk 0:01:41.1]} 29... dxc4 {[%clk 0:02:10.5]} 30. Rd1 {[%clk 0:01:40.1]}
30... f5 {[%clk 0:01:59.6]} 31. Qxe6+ {[%clk 0:01:35.3]} 1-0

[Event "Early-Titled-Tuesday-Blitz-June-18-2024"]
[Site "Chess.com"]
[Date "2024.06.18"]
[Round "3"]
[White "Guldona_2007"]
[Black "CristianS27"]
[Result "0-1"]
[WhiteElo "2256"]
[BlackElo "2495"]
[TimeControl "180+1"]
[EndTime "8:26:14 PDT"]
[Termination "CristianS27 won by resignation"]

1. e4 {[%clk 0:02:59.4]} 1... e5 {[%clk 0:03:00.2]} 2. Nf3 {[%clk 0:02:59.2]}
2... d5 {[%clk 0:03:00.9]} 3. exd5 {[%clk 0:02:59.1]} 3... e4 {[%clk 0:03:01.8]}
4. Ne5 {[%clk 0:02:53.4]} 4... Qxd5 {[%clk 0:03:01.1]} 5. d4 {[%clk 0:02:52.9]}
5... exd3 {[%clk 0:03:02]} 6. Nxd3 {[%clk 0:02:52.7]} 6... Nf6 {[%clk
0:03:02.6]} 7. Nc3 {[%clk 0:02:52.2]} 7... Qd8 {[%clk 0:03:03.3]} 8. Be2 {[%clk
0:02:49.8]} 8... Be7 {[%clk 0:03:04.2]} 9. O-O {[%clk 0:02:49.4]} 9... O-O
{[%clk 0:03:05.1]} 10. Bg5 {[%clk 0:02:47.9]} 10... Nc6 {[%clk 0:03:06]} 11. Qd2
{[%clk 0:02:43.5]} 11... Nd4 {[%clk 0:03:06.3]} 12. Be3 {[%clk 0:02:39.3]} 12...
Re8 {[%clk 0:03:03.7]} 13. Nf4 {[%clk 0:02:35.2]} 13... Nxe2+ {[%clk 0:03:02.6]}
14. Nfxe2 {[%clk 0:02:32.5]} 14... Qxd2 {[%clk 0:02:57.2]} 15. Bxd2 {[%clk
0:02:32.4]} 15... Bf5 {[%clk 0:02:58.1]} 16. Nd4 {[%clk 0:02:31.1]} 16... Bg6
{[%clk 0:02:58.7]} 17. f4 {[%clk 0:02:25.8]} 17... Rad8 {[%clk 0:02:55.3]} 18.
Nb3 {[%clk 0:02:15.7]} 18... Bxc2 {[%clk 0:02:52.7]} 19. Be3 {[%clk 0:02:14.1]}
19... Ng4 {[%clk 0:02:49.5]} 20. Bf2 {[%clk 0:02:07.3]} 20... Nxf2 {[%clk
0:02:47.9]} 21. Kxf2 {[%clk 0:02:02.4]} 21... Bxb3 {[%clk 0:02:47.6]} 22. axb3
{[%clk 0:02:02]} 22... Rd2+ {[%clk 0:02:47.6]} 23. Kg1 {[%clk 0:02:00.9]} 23...
Rxb2 {[%clk 0:02:47.7]} 24. Rfe1 {[%clk 0:01:49.8]} 24... Bc5+ {[%clk
0:02:46.3]} 25. Kh1 {[%clk 0:01:49.7]} 25... Rxe1+ {[%clk 0:02:43.2]} 26. Rxe1
{[%clk 0:01:49.3]} 26... g6 {[%clk 0:02:40.4]} 27. Na4 {[%clk 0:01:47.7]} 27...
Rc2 {[%clk 0:02:40.4]} 28. Nxc5 {[%clk 0:01:45.2]} 28... Rxc5 {[%clk 0:02:41.3]}
29. h3 {[%clk 0:01:41.6]} 29... Rc3 {[%clk 0:02:34.2]} 30. Re8+ {[%clk
0:01:39.5]} 30... Kg7 {[%clk 0:02:34.1]} 31. Re7 {[%clk 0:01:39.3]} 31... Rxb3
{[%clk 0:02:34.1]} 32. Rxc7 {[%clk 0:01:38.2]} 32... a5 {[%clk 0:02:35]} 33. Rc8
{[%clk 0:01:34.9]} 33... a4 {[%clk 0:02:34.6]} 34. Ra8 {[%clk 0:01:34.6]} 34...
a3 {[%clk 0:02:35.2]} 35. Kh2 {[%clk 0:01:33.1]} 35... b5 {[%clk 0:02:35.6]} 36.
Ra5 {[%clk 0:01:31.4]} 36... b4 {[%clk 0:02:35.6]} 37. f5 {[%clk 0:01:30.8]}
37... gxf5 {[%clk 0:02:36.5]} 38. Rxf5 {[%clk 0:01:30.4]} 38... a2 {[%clk
0:02:36.3]} 39. Rg5+ {[%clk 0:01:28]} 39... Kf6 {[%clk 0:02:35.9]} 40. Ra5
{[%clk 0:01:26.8]} 40... Ra3 {[%clk 0:02:36.2]} 0-1

[Event "Early-Titled-Tuesday-Blitz-June-18-2024"]
[Site "Chess.com"]
[Date "2024.06.18"]
[Round "3"]
[White "SHIVACalypso"]
[Black "gabduschew"]
[Result "1-0"]
[WhiteElo "2527"]
[BlackElo "2306"]
[TimeControl "180+1"]
[EndTime "8:26:23 PDT"]
[Termination "SHIVACalypso won by resignation"]

1. d4 {[%clk 0:03:00.9]} 1... Nf6 {[%clk 0:02:59.3]} 2. Nf3 {[%clk 0:03:01.4]}
2... g6 {[%clk 0:02:55.6]} 3. Bf4 {[%clk 0:03:01.6]} 3... Bg7 {[%clk 0:02:55.3]}
4. Nc3 {[%clk 0:03:02.1]} 4... d5 {[%clk 0:02:42.1]} 5. h4 {[%clk 0:03:00.4]}
5... O-O {[%clk 0:02:36.8]} 6. Qd2 {[%clk 0:03:00.2]} 6... Re8 {[%clk
0:02:36.3]} 7. O-O-O {[%clk 0:02:59.6]} 7... c6 {[%clk 0:02:33.6]} 8. h5 {[%clk
0:02:59.8]} 8... b5 {[%clk 0:02:32]} 9. Bh6 {[%clk 0:02:53.2]} 9... Bh8 {[%clk
0:02:32]} 10. hxg6 {[%clk 0:02:51.7]} 10... hxg6 {[%clk 0:02:32.9]} 11. Ng5
{[%clk 0:02:41.8]} 11... Qc7 {[%clk 0:02:04.5]} 12. e4 {[%clk 0:02:41.4]} 12...
dxe4 {[%clk 0:01:54.5]} 13. Ncxe4 {[%clk 0:02:42.3]} 13... Nxe4 {[%clk
0:01:53.5]} 14. Nxe4 {[%clk 0:02:42.3]} 14... Bf5 {[%clk 0:01:52.7]} 15. Bf8
{[%clk 0:02:21.4]} 1-0

[Event "Early-Titled-Tuesday-Blitz-June-18-2024"]
[Site "Chess.com"]
[Date "2024.06.18"]
[Round "3"]
[White "Lion-Al-Messi"]
[Black "VerdeNotte"]
[Result "0-1"]
[WhiteElo "2630"]
[BlackElo "2849"]
[TimeControl "180+1"]
[EndTime "8:26:46 PDT"]
[Termination "VerdeNotte won by resignation"]

1. e4 {[%clk 0:03:00.9]} 1... e5 {[%clk 0:02:53.2]} 2. Nf3 {[%clk 0:03:00.9]}
2... Nc6 {[%clk 0:02:53.1]} 3. Bc4 {[%clk 0:03:01]} 3... Nf6 {[%clk 0:02:53.1]}
4. d3 {[%clk 0:03:01.1]} 4... Bc5 {[%clk 0:02:53]} 5. c3 {[%clk 0:03:01.3]} 5...
d6 {[%clk 0:02:53.6]} 6. b4 {[%clk 0:03:01]} 6... Bb6 {[%clk 0:02:53.8]} 7. a4
{[%clk 0:03:01]} 7... a5 {[%clk 0:02:53.9]} 8. b5 {[%clk 0:03:01]} 8... Ne7
{[%clk 0:02:54.3]} 9. Nbd2 {[%clk 0:03:00.2]} 9... Ng6 {[%clk 0:02:53.6]} 10. h3
{[%clk 0:02:59.9]} 10... d5 {[%clk 0:02:50.1]} 11. exd5 {[%clk 0:02:58.9]} 11...
Nxd5 {[%clk 0:02:51]} 12. Ne4 {[%clk 0:02:58.4]} 12... h6 {[%clk 0:02:33.9]} 13.
Qb3 {[%clk 0:02:54.9]} 13... Be6 {[%clk 0:02:33.6]} 14. O-O {[%clk 0:02:52.6]}
14... O-O {[%clk 0:02:13.4]} 15. Ba3 {[%clk 0:02:52.1]} 15... Re8 {[%clk
0:02:13.8]} 16. Nc5 {[%clk 0:02:52.3]} 16... Bxc5 {[%clk 0:02:13]} 17. Bxc5
{[%clk 0:02:53.2]} 17... b6 {[%clk 0:02:08]} 18. Ba3 {[%clk 0:02:52]} 18... Ndf4
{[%clk 0:02:06]} 19. Rad1 {[%clk 0:02:52.1]} 19... Qf6 {[%clk 0:01:52.5]} 20.
Bxe6 {[%clk 0:02:51.2]} 20... Rxe6 {[%clk 0:01:50.4]} 21. Kh2 {[%clk 0:02:28.8]}
21... Nxg2 {[%clk 0:01:47.9]} 22. Kxg2 {[%clk 0:02:24.6]} 22... Nf4+ {[%clk
0:01:47.8]} 23. Kh2 {[%clk 0:02:24.1]} 23... Qf5 {[%clk 0:01:45.5]} 24. Ng1
{[%clk 0:01:50.6]} 24... Qg6 {[%clk 0:01:42.6]} 25. Qd5 {[%clk 0:01:47.9]} 25...
Nxd5 {[%clk 0:01:42]} 26. Ne2 {[%clk 0:01:47.2]} 26... Nf4 {[%clk 0:01:31]} 27.
Nxf4 {[%clk 0:01:46.3]} 27... exf4 {[%clk 0:01:31.6]} 28. Rg1 {[%clk 0:01:46.8]}
28... Qf5 {[%clk 0:01:29.7]} 29. Rd2 {[%clk 0:01:42.6]} 29... f3 {[%clk
0:01:29.4]} 30. Bc1 {[%clk 0:01:39.2]} 30... Re2 {[%clk 0:01:28.6]} 31. Rxe2
{[%clk 0:01:39.1]} 31... fxe2 {[%clk 0:01:28.5]} 32. Be3 {[%clk 0:01:40]} 32...
Qxd3 {[%clk 0:01:27.1]} 33. Bxh6 {[%clk 0:01:37.6]} 33... Qd6+ {[%clk
0:01:25.8]} 0-1

[Event "Early-Titled-Tuesday-Blitz-June-18-2024"]
[Site "Chess.com"]
[Date "2024.06.18"]
[Round "3"]
[White "tusplingher"]
[Black "KarlEmilElmer"]
[Result "1-0"]
[WhiteElo "2565"]
[BlackElo "2252"]
[TimeControl "180+1"]
[EndTime "8:26:49 PDT"]
[Termination "tusplingher won by checkmate"]

1. c4 {[%clk 0:03:00.9]} 1... Nf6 {[%clk 0:02:52.9]} 2. g3 {[%clk 0:02:59.4]}
2... c6 {[%clk 0:02:51.1]} 3. Bg2 {[%clk 0:02:59.3]} 3... d5 {[%clk 0:02:51.3]}
4. Nf3 {[%clk 0:02:59.6]} 4... Bf5 {[%clk 0:02:41.3]} 5. Qb3 {[%clk 0:02:54.4]}
5... Qc8 {[%clk 0:02:03.9]} 6. Nc3 {[%clk 0:02:39.5]} 6... e6 {[%clk 0:01:39.7]}
7. d3 {[%clk 0:02:37.9]} 7... Bd6 {[%clk 0:01:36.8]} 8. O-O {[%clk 0:02:31.9]}
8... h6 {[%clk 0:01:34.4]} 9. Re1 {[%clk 0:02:32]} 9... Nbd7 {[%clk 0:01:13.9]}
10. e4 {[%clk 0:02:30.3]} 10... dxe4 {[%clk 0:00:48.7]} 11. dxe4 {[%clk
0:02:28.8]} 11... Nc5 {[%clk 0:00:48.8]} 12. Qd1 {[%clk 0:02:28]} 12... Nfxe4
{[%clk 0:00:47.2]} 13. Nxe4 {[%clk 0:02:26.9]} 13... Nxe4 {[%clk 0:00:47.8]} 14.
Nh4 {[%clk 0:02:17.4]} 14... Nxf2 {[%clk 0:00:14.9]} 15. Qxd6 {[%clk 0:02:12.4]}
15... Ng4 {[%clk 0:00:14.1]} 16. Nxf5 {[%clk 0:02:08.9]} 16... Qd8 {[%clk
0:00:12]} 17. Nxg7# {[%clk 0:02:07.9]} 1-0

[Event "Early-Titled-Tuesday-Blitz-June-18-2024"]
[Site "Chess.com"]
[Date "2024.06.18"]
[Round "3"]
[White "Roachelley"]
[Black "Jospem"]
[Result "0-1"]
[WhiteElo "2545"]
[BlackElo "3052"]
[TimeControl "180+1"]
[EndTime "8:26:56 PDT"]
[Termination "Jospem won by checkmate"]

1. Nf3 {[%clk 0:03:00.9]} 1... c5 {[%clk 0:02:56.8]} 2. e3 {[%clk 0:03:00.7]}
2... Nf6 {[%clk 0:02:56.7]} 3. b3 {[%clk 0:03:00.1]} 3... e6 {[%clk 0:02:57.6]}
4. Bb2 {[%clk 0:03:00.1]} 4... b6 {[%clk 0:02:58.5]} 5. Be2 {[%clk 0:03:00.2]}
5... Bb7 {[%clk 0:02:58.8]} 6. d4 {[%clk 0:03:00.5]} 6... Be7 {[%clk 0:02:59.2]}
7. Nbd2 {[%clk 0:03:00.6]} 7... O-O {[%clk 0:02:59.8]} 8. c4 {[%clk 0:03:00.5]}
8... cxd4 {[%clk 0:02:58.7]} 9. exd4 {[%clk 0:03:00.5]} 9... d5 {[%clk
0:02:58.9]} 10. O-O {[%clk 0:03:00.3]} 10... Nc6 {[%clk 0:02:59.6]} 11. a3
{[%clk 0:02:54.6]} 11... Rc8 {[%clk 0:02:59.4]} 12. Rc1 {[%clk 0:02:54.2]} 12...
Re8 {[%clk 0:02:59.6]} 13. Bd3 {[%clk 0:02:44.2]} 13... dxc4 {[%clk 0:02:58.4]}
14. bxc4 {[%clk 0:02:42.9]} 14... Bf8 {[%clk 0:02:59.3]} 15. Qe2 {[%clk
0:02:38.1]} 15... g6 {[%clk 0:02:57.5]} 16. Rfd1 {[%clk 0:02:37.1]} 16... Bg7
{[%clk 0:02:56.9]} 17. Rc2 {[%clk 0:02:14.8]} 17... Nh5 {[%clk 0:02:53.9]} 18.
g3 {[%clk 0:02:13.8]} 18... Nxd4 {[%clk 0:02:52.3]} 19. Nxd4 {[%clk 0:02:10.3]}
19... Bxd4 {[%clk 0:02:53.2]} 20. Be4 {[%clk 0:02:07.3]} 20... Bxe4 {[%clk
0:02:44.8]} 21. Nxe4 {[%clk 0:02:06.8]} 21... e5 {[%clk 0:02:45.3]} 22. Rcd2
{[%clk 0:01:37.6]} 22... Qe7 {[%clk 0:02:44.1]} 23. Qf3 {[%clk 0:00:09.8]} 23...
f5 {[%clk 0:02:42.7]} 24. Nc3 {[%clk 0:00:06.4]} 24... Rxc4 {[%clk 0:02:42.2]}
25. Nd5 {[%clk 0:00:05.2]} 25... Qc5 {[%clk 0:02:42.8]} 26. Bxd4 {[%clk
0:00:04.7]} 26... Rxd4 {[%clk 0:02:43.7]} 27. Rxd4 {[%clk 0:00:04.3]} 27... exd4
{[%clk 0:02:44.6]} 28. Nf4 {[%clk 0:00:04.1]} 28... Nxf4 {[%clk 0:02:44.3]} 29.
Qxf4 {[%clk 0:00:05]} 29... Qd5 {[%clk 0:02:39.5]} 30. Rd3 {[%clk 0:00:04.7]}
30... Re1# {[%clk 0:02:39.2]} 0-1

[Event "Early-Titled-Tuesday-Blitz-June-18-2024"]
[Site "Chess.com"]
[Date "2024.06.18"]
[Round "3"]
[White "giovannibrandao7"]
[Black "HajiyevKanan"]
[Result "0-1"]
[WhiteElo "2293"]
[BlackElo "2511"]
[TimeControl "180+1"]
[EndTime "8:26:59 PDT"]
[Termination "HajiyevKanan won by resignation"]

1. e4 {[%clk 0:03:00]} 1... c6 {[%clk 0:02:59.8]} 2. d4 {[%clk 0:02:59.9]} 2...
d5 {[%clk 0:03:00.7]} 3. Nc3 {[%clk 0:02:58.2]} 3... a6 {[%clk 0:03:01.1]} 4.
Bd3 {[%clk 0:02:46.8]} 4... dxe4 {[%clk 0:03:00.4]} 5. Nxe4 {[%clk 0:02:47.4]}
5... Bf5 {[%clk 0:03:00.7]} 6. Nf3 {[%clk 0:02:46.8]} 6... e6 {[%clk 0:03:00.4]}
7. O-O {[%clk 0:02:45.7]} 7... Nf6 {[%clk 0:03:00.3]} 8. Nxf6+ {[%clk
0:02:38.9]} 8... Qxf6 {[%clk 0:03:01.2]} 9. Re1 {[%clk 0:02:22.8]} 9... Nd7
{[%clk 0:02:59.1]} 10. Bg5 {[%clk 0:01:53.4]} 10... Qg6 {[%clk 0:02:57.7]} 11.
Bf4 {[%clk 0:01:53.3]} 11... Bxd3 {[%clk 0:02:56]} 12. Qxd3 {[%clk 0:01:52.5]}
12... Qxd3 {[%clk 0:02:56.1]} 13. cxd3 {[%clk 0:01:53.4]} 13... Bb4 {[%clk
0:02:50.2]} 14. Re2 {[%clk 0:01:46.7]} 14... O-O-O {[%clk 0:02:41]} 15. Rd1
{[%clk 0:01:35.8]} 15... h6 {[%clk 0:02:38.8]} 16. a3 {[%clk 0:01:30.4]} 16...
Ba5 {[%clk 0:02:38.9]} 17. b4 {[%clk 0:01:19.3]} 17... Bc7 {[%clk 0:02:27.6]}
18. Bxc7 {[%clk 0:01:15.9]} 18... Kxc7 {[%clk 0:02:28.5]} 19. Kf1 {[%clk
0:01:05.7]} 19... Rhe8 {[%clk 0:02:15.7]} 20. Ne5 {[%clk 0:00:55.2]} 20... Re7
{[%clk 0:02:08.3]} 21. Rc1 {[%clk 0:00:38.5]} 21... Nxe5 {[%clk 0:01:48.1]} 0-1

[Event "Early-Titled-Tuesday-Blitz-June-18-2024"]
[Site "Chess.com"]
[Date "2024.06.18"]
[Round "3"]
[White "RantomOpening"]
[Black "temus_galaktionov"]
[Result "0-1"]
[WhiteElo "2605"]
[BlackElo "2848"]
[TimeControl "180+1"]
[EndTime "8:27:02 PDT"]
[Termination "temus_galaktionov won by resignation"]

1. c4 {[%clk 0:03:00.9]} 1... c6 {[%clk 0:02:52.2]} 2. Nf3 {[%clk 0:02:58.3]}
2... g6 {[%clk 0:02:53.1]} 3. e4 {[%clk 0:02:56.7]} 3... Bg7 {[%clk 0:02:54]} 4.
d4 {[%clk 0:02:55.9]} 4... d6 {[%clk 0:02:54.9]} 5. Nc3 {[%clk 0:02:55.5]} 5...
Nd7 {[%clk 0:02:54.2]} 6. Be2 {[%clk 0:02:56.1]} 6... e5 {[%clk 0:02:54.8]} 7.
O-O {[%clk 0:02:55.9]} 7... Ngf6 {[%clk 0:02:54.1]} 8. Be3 {[%clk 0:02:55.1]}
8... Qe7 {[%clk 0:02:53.9]} 9. dxe5 {[%clk 0:02:53.8]} 9... dxe5 {[%clk
0:02:54.8]} 10. h3 {[%clk 0:02:53.4]} 10... O-O {[%clk 0:02:54]} 11. Qc2 {[%clk
0:02:53.3]} 11... Nh5 {[%clk 0:02:54.4]} 12. Rfd1 {[%clk 0:02:52.2]} 12... Nf4
{[%clk 0:02:53.8]} 13. Bf1 {[%clk 0:02:51.7]} 13... Nc5 {[%clk 0:02:53.4]} 14.
b4 {[%clk 0:02:42.8]} 14... Nce6 {[%clk 0:02:52.6]} 15. a4 {[%clk 0:02:40.5]}
15... Qxb4 {[%clk 0:02:50.6]} 16. Rab1 {[%clk 0:02:39]} 16... Qe7 {[%clk
0:02:49.7]} 17. g3 {[%clk 0:02:35.4]} 17... Nh5 {[%clk 0:02:41.6]} 18. Bg2
{[%clk 0:02:34.5]} 18... Rd8 {[%clk 0:02:40.7]} 19. a5 {[%clk 0:02:29.7]} 19...
Rxd1+ {[%clk 0:02:37.6]} 20. Rxd1 {[%clk 0:02:30.6]} 20... Qc7 {[%clk
0:02:36.2]} 21. Qa4 {[%clk 0:02:24.4]} 21... Nf6 {[%clk 0:02:30.5]} 22. a6
{[%clk 0:02:15.6]} 22... b6 {[%clk 0:02:29.2]} 23. Kh2 {[%clk 0:01:32.1]} 23...
Nd7 {[%clk 0:02:27.9]} 24. Qc2 {[%clk 0:01:16.6]} 24... Bxa6 {[%clk 0:02:21.7]}
25. Ne2 {[%clk 0:01:13.6]} 25... Ndc5 {[%clk 0:02:20.5]} 26. h4 {[%clk
0:01:12.3]} 26... Rd8 {[%clk 0:02:18.4]} 27. Rxd8+ {[%clk 0:01:11.2]} 27... Qxd8
{[%clk 0:02:19.3]} 28. Qa2 {[%clk 0:01:08.5]} 28... Qd3 {[%clk 0:02:18.1]} 29.
Nc1 {[%clk 0:01:04.8]} 29... Qxc4 {[%clk 0:02:17.6]} 30. Qa1 {[%clk 0:01:01.9]}
30... Nd4 {[%clk 0:02:12.4]} 31. Nd2 {[%clk 0:00:53.6]} 31... Qa4 {[%clk
0:02:09.3]} 32. Qb2 {[%clk 0:00:49.3]} 32... Bb5 {[%clk 0:02:07.5]} 33. f4
{[%clk 0:00:42.4]} 33... exf4 {[%clk 0:02:07.1]} 34. gxf4 {[%clk 0:00:43]} 34...
Nf3+ {[%clk 0:02:06.8]} 0-1

[Event "Early-Titled-Tuesday-Blitz-June-18-2024"]
[Site "Chess.com"]
[Date "2024.06.18"]
[Round "3"]
[White "NikitaShnadrygin"]
[Black "Msb2"]
[Result "0-1"]
[WhiteElo "2771"]
[BlackElo "3055"]
[TimeControl "180+1"]
[EndTime "8:27:08 PDT"]
[Termination "Msb2 won by resignation"]

1. e4 {[%clk 0:03:00.9]} 1... e6 {[%clk 0:03:00.4]} 2. d4 {[%clk 0:03:00.3]}
2... d5 {[%clk 0:03:01.3]} 3. Nd2 {[%clk 0:03:00.1]} 3... c5 {[%clk 0:03:01.4]}
4. exd5 {[%clk 0:03:00]} 4... Qxd5 {[%clk 0:03:02.3]} 5. Ngf3 {[%clk 0:03:00.5]}
5... cxd4 {[%clk 0:03:03]} 6. Bc4 {[%clk 0:03:01.1]} 6... Qd6 {[%clk 0:03:03.8]}
7. O-O {[%clk 0:03:01.6]} 7... Nf6 {[%clk 0:03:04.6]} 8. Nb3 {[%clk 0:03:01.5]}
8... Nc6 {[%clk 0:03:05.4]} 9. Nbxd4 {[%clk 0:03:01.8]} 9... Nxd4 {[%clk
0:03:06.3]} 10. Nxd4 {[%clk 0:03:02.7]} 10... Be7 {[%clk 0:03:06.6]} 11. c3
{[%clk 0:02:59.7]} 11... O-O {[%clk 0:03:07.2]} 12. Qf3 {[%clk 0:02:59]} 12...
e5 {[%clk 0:03:07.8]} 13. Nf5 {[%clk 0:02:55.2]} 13... Bxf5 {[%clk 0:03:08.3]}
14. Qxf5 {[%clk 0:02:56.1]} 14... Qc7 {[%clk 0:03:09.1]} 15. Bb3 {[%clk
0:02:55]} 15... a5 {[%clk 0:03:09.5]} 16. a4 {[%clk 0:02:45]} 16... Ra6 {[%clk
0:03:06.2]} 17. Re1 {[%clk 0:02:38.5]} 17... Bc5 {[%clk 0:02:57.1]} 18. Rxe5
{[%clk 0:02:08.1]} 18... Bxf2+ {[%clk 0:02:23.5]} 19. Kh1 {[%clk 0:01:37.7]}
19... Ng4 {[%clk 0:02:20.4]} 20. Bxf7+ {[%clk 0:01:25.3]} 20... Kh8 {[%clk
0:02:13.2]} 21. Bc4 {[%clk 0:00:57.6]} 21... Raf6 {[%clk 0:01:58.6]} 22. Qxg4
{[%clk 0:00:42.5]} 22... Qxe5 {[%clk 0:01:57.3]} 23. Bd2 {[%clk 0:00:31.8]}
23... Be1 {[%clk 0:01:57.2]} 0-1